fUSD/lending_fUSD_20260513
["ID","MTS","AMOUNT","RATE_DAILY","PERIOD"]
[422132826,1778609128000,74.56800338,7.599e-05,2]
[422132835,1778609129000,157.78,9.52e-05,2]
[422132834,1778609129000,68.69752317,9.2e-05,2]
[422132833,1778609129000,89.08247683,9.2e-05,2]
[422132832,1778609129000,157.78,8.88e-05,2]
[422132831,1778609129000,157.78,8.56e-05,2]
[422132830,1778609129000,35.10257477,8.239e-05,2]
[422132836,1778609130000,157.78,9.84e-05,2]
[422132837,1778609212000,-157.78,0.0001016,2]
[422132838,1778609212000,-20.29095168,0.00010481,2]
[422132840,1778609409000,1030.0,0.00041259,120]
[422132854,1778609431000,-252.0,0.0001176,2]
[422132856,1778609431000,-9588.29,0.00011761,2]
[422132855,1778609431000,-157.78,0.00011761,2]
[422132860,1778609431000,-6177.65183422,0.000118,2]
[422132858,1778609431000,-500.0,0.00011793,2]
[422132859,1778609431000,-157.1,0.00011796,2]
[422132861,1778609431000,-4269.76,0.00012068,2]
[422132852,1778609431000,-217.7267712,0.0001176,2]
[422132857,1778609431000,-8261.07,0.00011761,2]
[422132853,1778609431000,-982.2732288,0.0001176,2]
[422132847,1778609431000,-84.57704997,0.00011441,2]
[422132851,1778609431000,-300.0,0.0001176,2]
[422132849,1778609431000,-1873.19,0.00011714,2]
[422132848,1778609431000,-73.20295003,0.00011441,2]
[422132846,1778609431000,-150.0,0.00011319,2]
[422132845,1778609431000,-150.0,0.00011319,2]
[422132843,1778609431000,-1.78748503,0.00010801,2]
[422132844,1778609431000,-157.78,0.00011121,2]
[422132842,1778609431000,-155.99251497,0.00010801,2]
[422132850,1778609431000,-1000.0,0.00011731,2]
[422132841,1778609431000,-137.48904832,0.00010481,2]
[422132863,1778609431000,-1852.42,0.00012191,2]
[422132862,1778609431000,-264.15,0.00012128,2]
[422132864,1778609431000,-150.0,0.00012239,2]
[422132885,1778609431000,-1680.0,0.00012936,2]
[422132884,1778609431000,-420.0,0.00012913,2]
[422132883,1778609431000,-1200.0,0.000129,4]
[422132880,1778609431000,-152.46,0.00012741,2]
[422132882,1778609431000,-800.0,0.000128,4]
[422132881,1778609431000,-235.85,0.00012758,2]
[422132879,1778609431000,-400.0,0.000127,4]
[422132875,1778609431000,-150.0,0.00012662,2]
[422132874,1778609431000,-564.29,0.00012636,2]
[422132886,1778609431000,-3389.83,0.00013006,2]
[422132872,1778609431000,-18329.23,0.00012594,2]
[422132877,1778609431000,-3389.83,0.00012696,2]
[422132868,1778609431000,-3389.83,0.00012387,2]
[422132867,1778609431000,-284.0,0.00012356,2]
[422132866,1778609431000,-197.97,0.00012329,2]
[422132865,1778609431000,-500.0,0.00012301,2]
[422132869,1778609431000,-500.0,0.00012437,2]
[422132871,1778609431000,-182.26,0.000125,2]
[422132873,1778609431000,-200.0,0.00012636,2]
[422132870,1778609431000,-167.82,0.00012442,2]
[422132901,1778609432000,-430.75300935,0.0001337,2]
[422132907,1778609432000,-500.0,0.0001337,2]
[422132905,1778609432000,-500.0,0.0001337,2]
[422132904,1778609432000,-500.0,0.0001337,2]
[422132902,1778609432000,-500.0,0.0001337,2]
[422132903,1778609432000,-602.35083993,0.0001337,2]
[422132900,1778609432000,-500.0,0.0001337,2]
[422132899,1778609432000,-500.0,0.0001337,2]
[422132894,1778609432000,-4220.86172595,0.0001333,2]
[422132898,1778609432000,-500.0,0.0001337,2]
[422132895,1778609432000,-257.4995761,0.00013359,2]
[422132896,1778609432000,-377.6431889,0.00013361,2]
[422132891,1778609432000,-5957.06893125,0.0001333,2]
[422132893,1778609432000,-9785.08121527,0.0001333,2]
[422132888,1778609432000,-500.0,0.00013212,2]
[422132889,1778609432000,-3389.83,0.00013316,2]
[422132887,1778609432000,-250.0,0.0001307,2]
[422132897,1778609432000,-500.0,0.0001337,2]
[422132906,1778609432000,-439.67028468,0.0001337,2]
[422132910,1778609432000,-500.0,0.0001337,2]
[422132908,1778609432000,-500.0,0.0001337,2]
[422132909,1778609432000,-500.0,0.0001337,2]
[422132928,1778609432000,-721.1518257,0.00013371,2]
[422132925,1778609432000,-17274.59534262,0.00013371,2]
[422132926,1778609432000,-74135.35667579,0.00013371,2]
[422132924,1778609432000,-36737.28573492,0.00013371,2]
[422132927,1778609432000,-7901.54702991,0.00013371,2]
[422132921,1778609432000,-433.25873599,0.0001337,2]
[422132923,1778609432000,-1883.0,0.00013371,5]
[422132918,1778609432000,-500.0,0.0001337,2]
[422132922,1778609432000,-186.69249352,0.0001337,2]
[422132919,1778609432000,-500.0,0.0001337,2]
[422132915,1778609432000,-500.0,0.0001337,2]
[422132916,1778609432000,-500.0,0.0001337,2]
[422132917,1778609432000,-173.46589453,0.0001337,2]
[422132914,1778609432000,-500.0,0.0001337,2]
[422132912,1778609432000,-500.0,0.0001337,2]
[422132913,1778609432000,-500.0,0.0001337,2]
[422132911,1778609432000,-500.0,0.0001337,2]
[422132920,1778609432000,-339.14186435,0.0001337,2]
[422132938,1778609437000,-733.44231273,0.00013371,2]
[422132937,1778609437000,-8100.61258535,0.00013371,2]
[422132939,1778609437000,-27055.09977875,0.00013371,2]
[422132940,1778609437000,-380.28319811,0.00013371,2]
[422132944,1778609437000,-873.39,0.00013371,2]
[422132943,1778609437000,-1172.96774003,0.00013371,2]
[422132942,1778609437000,-1086.4395005,0.00013371,2]
[422132946,1778609437000,-6250.77960331,0.00013371,2]
[422132945,1778609437000,-587.38937292,0.00013371,2]
[422132941,1778609437000,-750.97674804,0.00013371,2]
[422133041,1778609442000,-332.03841116,0.00013371,2]
[422133043,1778609468000,770.21776077,0.00041259,120]
[422133044,1778609650000,278.0,0.00027397,120]
[422133045,1778609912000,500.0,0.00041258,120]
[422133046,1778609913000,500.0,0.00041258,120]
[422133047,1778609995000,156.25,6.232e-05,2]
[422133051,1778609996000,156.25,7.562e-05,2]
[422133050,1778609996000,156.25,7.229e-05,2]
[422133049,1778609996000,156.25,6.897e-05,2]
[422133048,1778609996000,156.25,6.564e-05,2]
[422133053,1778609997000,156.25,8.227e-05,2]
[422133052,1778609997000,156.25,7.895e-05,2]
[422133055,1778609998000,156.25,8.893e-05,2]
[422133054,1778609998000,156.25,8.56e-05,2]
[422133057,1778609998000,156.25,9.558e-05,2]
[422133058,1778609998000,156.25,9.89e-05,2]
[422133056,1778609998000,156.25,9.225e-05,2]
[422133059,1778610128000,1320.482796,7.945e-05,2]
[422133060,1778610143000,150.0,9.916e-05,2]
[422133061,1778610265000,150.0,9.916e-05,2]
[422133062,1778610311000,500.0,0.00041258,120]
[422133064,1778610335000,500.0,0.00041258,120]
[422133063,1778610335000,500.0,0.00041258,120]
[422133065,1778610336000,503.15705126,0.00041258,120]
[422133068,1778610417000,-91.3473661,0.00010556,2]
[422133067,1778610417000,-156.25,0.00010223,2]
[422133069,1778610631000,-64.9026339,0.00010556,2]
[422133070,1778610631000,-156.25,0.00010888,2]
[422133071,1778610631000,-156.25,0.00011221,2]
[422133074,1778610631000,-136.97310663,0.00011554,2]
[422133075,1778610631000,-19.27689337,0.00011554,2]
[422133076,1778610631000,-2000.0,0.00011603,2]
[422133072,1778610631000,-250.0,0.00011245,2]
[422133077,1778610631000,-250.0,0.00011611,2]
[422133082,1778610631000,-1711.66,0.00011764,2]
[422133079,1778610631000,-182.26,0.00011665,2]
[422133073,1778610631000,-321.18425947,0.00011533,2]
[422133080,1778610631000,-4173.04,0.00011709,2]
[422133078,1778610631000,-200.0,0.00011627,2]
[422133090,1778610631000,-930.87,0.00012004,2]
[422133089,1778610631000,-156.25,0.00011886,2]
[422133088,1778610631000,-1000.0,0.00011828,2]
[422133086,1778610631000,-2182.29,0.00011805,2]
[422133085,1778610631000,-300.0,0.00011804,2]
[422133084,1778610631000,-300.0,0.00011804,2]
[422133083,1778610631000,-300.0,0.00011804,2]
[422133081,1778610631000,-1200.0,0.00011727,2]
[422133087,1778610631000,-2829.19,0.00011818,2]
[422133118,1778610632000,-152.0,0.00013033,2]
[422133106,1778610632000,-1100.0,0.000128,4]
[422133114,1778610632000,-930.87,0.00012905,2]
[422133108,1778610632000,-1000.0,0.00012899,2]
[422133110,1778610632000,-1400.0,0.000129,4]
[422133104,1778610632000,-787.53221972,0.00012703,2]
[422133101,1778610632000,-19738.44,0.00012607,2]
[422133100,1778610632000,-164.97,0.00012607,2]
[422133102,1778610632000,-800.0,0.000127,4]
[422133097,1778610632000,-500.0,0.00012604,2]
[422133098,1778610632000,-930.87,0.00012604,2]
[422133095,1778610632000,-150.0,0.00012569,2]
[422133096,1778610632000,-500.0,0.000126,4]
[422133094,1778610632000,-200.0,0.000125,4]
[422133091,1778610632000,-156.25,0.00012219,2]
[422133092,1778610632000,-930.87,0.00012304,2]
[422133093,1778610632000,-150.0,0.00012491,2]
[422133116,1778610632000,-420.0,0.00012961,2]
[422133099,1778610632000,-414.94,0.00012607,2]
[422133112,1778610632000,-1680.0,0.000129,2]
[422133143,1778610632000,-927842.02951318,0.00013166,2]
[422133120,1778610632000,-2000.0,0.00013053,2]
[422133146,1778610632000,-190113.15749686,0.00013166,2]
[422133145,1778610632000,-134287.62115425,0.00013166,2]
[422133147,1778610632000,-1254.41808677,0.00013166,2]
[422133144,1778610632000,-172649.2592145,0.00013166,2]
[422133140,1778610632000,-303.14429228,0.00013166,2]
[422133142,1778610632000,-16268.41769803,0.00013166,2]
[422133141,1778610632000,-539.08293156,0.00013166,2]
[422133122,1778610632000,-9133.59426808,0.00013066,2]
[422133137,1778610632000,-500.0,0.00013165,2]
[422133139,1778610632000,-268.80199192,0.00013165,2]
[422133136,1778610632000,-669.79779163,0.00013165,2]
[422133138,1778610632000,-159.96336497,0.00013165,2]
[422133134,1778610632000,-300.0,0.00013165,2]
[422133133,1778610632000,-251.76212593,0.00013156,2]
[422133132,1778610632000,-171.66638406,0.00013156,2]
[422133130,1778610632000,-159.92,0.00013113,2]
[422133124,1778610632000,-8561.94606337,0.00013066,2]
[422133126,1778610632000,-3798.77555331,0.00013066,2]
[422133128,1778610632000,-2500.0,0.00013066,2]
[422133135,1778610632000,-300.0,0.00013165,2]
[422133149,1778610638000,-27055.09977875,0.00013166,2]
[422133376,1778610640000,-822.60614461,0.00013183,2]
[422133374,1778610640000,-5000.0,0.00013166,2]
[422133378,1778610640000,-930.87,0.00013205,2]
[422133372,1778610640000,-46798.41475569,0.00013166,2]
[422133382,1778610640000,-31426.99760898,0.0001324,2]
[422133423,1778610640000,-474.50808334,0.0001324,2]
[422133380,1778610640000,-300.0,0.00013239,2]
[422133385,1778610640000,-1178.95012029,0.0001324,2]
[422133387,1778610640000,-7593.808309,0.0001324,2]
[422133689,1778610642000,-581.54933106,0.0001324,2]
[422133697,1778610642000,-674.45507456,0.0001324,2]
[422133708,1778610643000,-6988.08220382,0.0001324,2]
[422133730,1778610643000,-2763.65321204,0.0001324,2]
[422133751,1778610643000,-8385.21427624,0.0001324,2]
[422133706,1778610643000,-7421.33903654,0.0001324,2]
[422133755,1778610643000,-6.64615195,0.00013265,2]
[422133758,1778610643000,-148.35384805,0.00013265,2]
[422133759,1778610643000,-174.59413152,0.00013265,2]
[422133753,1778610643000,-251.76212593,0.00013256,2]
[422133732,1778610643000,-722.8955016,0.0001324,2]
[422134140,1778610646000,-1031340.57392094,0.00013266,2]
[422134118,1778610646000,-300.0,0.00013265,2]
[422134116,1778610646000,-131.75915854,0.00013265,2]
[422134120,1778610646000,-11292.86712645,0.00013266,2]
[422134151,1778610648000,-196410.99257155,0.00013266,2]
[422134152,1778610648000,-3452.80842712,0.00013266,2]
[422134153,1778610831000,158.33,6.306e-05,2]
[422134154,1778610831000,158.33,6.625e-05,2]
[422134155,1778610832000,158.33,6.944e-05,2]
[422134158,1778610832000,158.33,7.901e-05,2]
[422134157,1778610832000,158.33,7.582e-05,2]
[422134156,1778610832000,158.33,7.263e-05,2]
[422134160,1778610833000,158.33,8.539e-05,2]
[422134159,1778610833000,158.33,8.22e-05,2]
[422134164,1778610834000,158.33,9.814e-05,2]
[422134163,1778610834000,158.33,9.495e-05,2]
[422134162,1778610834000,158.33,9.176e-05,2]
[422134161,1778610834000,158.33,8.857e-05,2]
[422134165,1778610955000,500.0,0.00041275,120]
[422134166,1778611044000,500.0,0.00041262,120]
[422134168,1778611044000,568.06015006,0.00041262,120]
[422134167,1778611044000,500.0,0.00041262,120]
[422134170,1778611151000,225.665499,0.00041262,120]
[422134171,1778611304000,500.0,0.00041262,120]
[422134175,1778611612000,447.04716222,0.00041312,120]
[422134174,1778611612000,500.0,0.00041312,120]
[422134177,1778611668000,150.0,9.777e-05,2]
[422134180,1778611699000,500.0,0.00041312,120]
[422134195,1778611831000,-152.0,0.00010079,2]
[422134196,1778611831000,-250.0,0.00010106,2]
[422134197,1778611831000,-158.33,0.00010133,2]
[422134222,1778611832000,-200.0,0.00011224,2]
[422134228,1778611832000,-491.06,0.00011602,2]
[422134230,1778611832000,-491.06,0.00011879,2]
[422134231,1778611832000,-150.0,0.00011934,2]
[422134229,1778611832000,-158.33,0.00011728,2]
[422134239,1778611832000,-150.0,0.00012008,2]
[422134232,1778611832000,-150.0,0.00011934,2]
[422134236,1778611832000,-150.0,0.00011934,2]
[422134224,1778611832000,-491.06,0.00011326,2]
[422134198,1778611832000,-158.33,0.00010452,2]
[422134235,1778611832000,-150.0,0.00011934,2]
[422134238,1778611832000,-150.0,0.00011934,2]
[422134237,1778611832000,-150.0,0.00011934,2]
[422134240,1778611832000,-223.21,0.00012012,2]
[422134241,1778611832000,-150.0,0.00012036,2]
[422134242,1778611832000,-150.0,0.00012036,2]
[422134252,1778611832000,-150.0,0.0001224,2]
[422134248,1778611832000,-150.0,0.00012155,2]
[422134233,1778611832000,-150.0,0.00011934,2]
[422134234,1778611832000,-150.0,0.00011934,2]
[422134244,1778611832000,-150.0,0.00012082,2]
[422134226,1778611832000,-158.33,0.00011409,2]
[422134199,1778611832000,-158.33,0.00010771,2]
[422134200,1778611832000,-77.01,0.00010944,2]
[422134207,1778611832000,-72.99,0.00010944,2]
[422134208,1778611832000,-152.0,0.00011009,2]
[422134209,1778611832000,-371.89,0.00011011,2]
[422134214,1778611832000,-599.41046989,0.00011087,2]
[422134212,1778611832000,-193.0,0.00011087,2]
[422134211,1778611832000,-1648.1,0.00011078,2]
[422134225,1778611832000,-223.21,0.00011379,2]
[422134213,1778611832000,-250.0,0.00011087,2]
[422134215,1778611832000,-158.33,0.0001109,2]
[422134219,1778611832000,-1200.0,0.00011185,2]
[422134217,1778611832000,-163.34,0.00011146,2]
[422134227,1778611832000,-1737.36,0.00011429,2]
[422134216,1778611832000,-150.0,0.00011112,2]
[422134218,1778611832000,-300.0,0.00011185,2]
[422134221,1778611832000,-227.81,0.00011187,2]
[422134220,1778611832000,-2000.0,0.00011187,2]
[422134210,1778611832000,-491.06,0.0001105,2]
[422134246,1778611832000,-150.0,0.00012138,2]
[422134223,1778611832000,-910.94,0.00011277,2]
[422134245,1778611832000,-150.0,0.000121,2]
[422134275,1778611832000,-167.0,0.00012506,2]
[422134271,1778611832000,-734.89463291,0.00012478,2]
[422134274,1778611832000,-151.0,0.00012504,2]
[422134272,1778611832000,-226.39869894,0.00012497,2]
[422134276,1778611832000,-500.0,0.00012506,2]
[422134288,1778611832000,-500.0,0.00012506,2]
[422134278,1778611832000,-500.0,0.00012506,2]
[422134279,1778611832000,-500.0,0.00012506,2]
[422134273,1778611832000,-200.0,0.000125,4]
[422134287,1778611832000,-500.0,0.00012506,2]
[422134284,1778611832000,-500.0,0.00012506,2]
[422134280,1778611832000,-500.0,0.00012506,2]
[422134286,1778611832000,-500.0,0.00012506,2]
[422134281,1778611832000,-500.0,0.00012506,2]
[422134282,1778611832000,-500.0,0.00012506,2]
[422134285,1778611832000,-500.0,0.00012506,2]
[422134289,1778611832000,-500.0,0.00012506,2]
[422134249,1778611832000,-150.0,0.00012155,2]
[422134283,1778611832000,-500.0,0.00012506,2]
[422134270,1778611832000,-150.0,0.00012465,2]
[422134277,1778611832000,-500.0,0.00012506,2]
[422134269,1778611832000,-150.0,0.0001245,2]
[422134268,1778611832000,-151.08590078,0.00012445,2]
[422134243,1778611832000,-158.33,0.00012047,2]
[422134247,1778611832000,-491.06,0.00012155,2]
[422134250,1778611832000,-150.0,0.00012199,2]
[422134253,1778611832000,-150.0,0.00012266,2]
[422134258,1778611832000,-150.0,0.00012342,2]
[422134260,1778611832000,-150.0,0.00012376,2]
[422134264,1778611832000,-3418.89799797,0.00012424,2]
[422134261,1778611832000,-150.0,0.00012376,2]
[422134254,1778611832000,-150.0,0.00012266,2]
[422134257,1778611832000,-500.0,0.00012342,2]
[422134267,1778611832000,-150.0,0.00012444,2]
[422134266,1778611832000,-150.0,0.00012432,2]
[422134265,1778611832000,-3901.00497899,0.00012424,2]
[422134259,1778611832000,-158.33,0.00012365,2]
[422134251,1778611832000,-150.0,0.00012229,2]
[422134262,1778611832000,-329.21967145,0.00012424,2]
[422134255,1778611832000,-150.0,0.00012303,2]
[422134256,1778611832000,-1680.0,0.00012304,2]
[422134263,1778611832000,-8831.61586254,0.00012424,2]
[422134319,1778611833000,-500.0,0.00012506,2]
[422134317,1778611833000,-500.0,0.00012506,2]
[422134324,1778611833000,-350.0,0.00012506,2]
[422134318,1778611833000,-500.0,0.00012506,2]
[422134320,1778611833000,-500.0,0.00012506,2]
[422134322,1778611833000,-500.0,0.00012506,2]
[422134321,1778611833000,-500.0,0.00012506,2]
[422134325,1778611833000,-500.0,0.00012506,2]
[422134323,1778611833000,-500.0,0.00012506,2]
[422134316,1778611833000,-500.0,0.00012506,2]
[422134333,1778611833000,-150.0,0.00012546,2]
[422134326,1778611833000,-500.0,0.00012506,2]
[422134338,1778611833000,-150.0,0.00012597,2]
[422134329,1778611833000,-500.0,0.00012506,2]
[422134334,1778611833000,-2000.0,0.00012586,2]
[422134331,1778611833000,-500.0,0.00012506,2]
[422134328,1778611833000,-500.0,0.00012506,2]
[422134330,1778611833000,-500.0,0.00012506,2]
[422134335,1778611833000,-150.0,0.00012597,2]
[422134332,1778611833000,-150.0,0.00012524,2]
[422134314,1778611833000,-500.0,0.00012506,2]
[422134337,1778611833000,-150.0,0.00012597,2]
[422134315,1778611833000,-500.0,0.00012506,2]
[422134293,1778611833000,-500.0,0.00012506,2]
[422134308,1778611833000,-500.0,0.00012506,2]
[422134291,1778611833000,-500.0,0.00012506,2]
[422134292,1778611833000,-500.0,0.00012506,2]
[422134290,1778611833000,-500.0,0.00012506,2]
[422134336,1778611833000,-150.0,0.00012597,2]
[422134300,1778611833000,-500.0,0.00012506,2]
[422134296,1778611833000,-500.0,0.00012506,2]
[422134294,1778611833000,-500.0,0.00012506,2]
[422134295,1778611833000,-500.0,0.00012506,2]
[422134297,1778611833000,-500.0,0.00012506,2]
[422134298,1778611833000,-500.0,0.00012506,2]
[422134313,1778611833000,-500.0,0.00012506,2]
[422134299,1778611833000,-500.0,0.00012506,2]
[422134302,1778611833000,-500.0,0.00012506,2]
[422134301,1778611833000,-500.0,0.00012506,2]
[422134311,1778611833000,-500.0,0.00012506,2]
[422134310,1778611833000,-500.0,0.00012506,2]
[422134307,1778611833000,-500.0,0.00012506,2]
[422134303,1778611833000,-500.0,0.00012506,2]
[422134306,1778611833000,-500.0,0.00012506,2]
[422134309,1778611833000,-500.0,0.00012506,2]
[422134304,1778611833000,-500.0,0.00012506,2]
[422134305,1778611833000,-500.0,0.00012506,2]
[422134312,1778611833000,-500.0,0.00012506,2]
[422134339,1778611833000,-150.0,0.00012597,2]
[422134327,1778611833000,-500.0,0.00012506,2]
[422134340,1778611833000,-150.0,0.00012597,2]
[422134368,1778611833000,-350.0,0.00012957,2]
[422134369,1778611833000,-387.87311877,0.00012965,2]
[422134370,1778611833000,-235.82384684,0.00012965,2]
[422134372,1778611833000,-500.0,0.00012965,2]
[422134375,1778611833000,-410.00944925,0.00012965,2]
[422134376,1778611833000,-150.0,0.00012966,2]
[422134374,1778611833000,-500.0,0.00012965,2]
[422134377,1778611833000,-1459937.29695437,0.00012966,2]
[422134378,1778611833000,-10525.10684568,0.00012966,2]
[422134390,1778611833000,-516.94609672,0.00013135,2]
[422134367,1778611833000,-226.39869894,0.00012956,2]
[422134380,1778611833000,-4689.56097035,0.00012966,2]
[422134382,1778611833000,-150.0,0.00012995,2]
[422134381,1778611833000,-3418.89799795,0.00012974,2]
[422134384,1778611833000,-150.0,0.00013039,2]
[422134387,1778611833000,-150.0,0.00013095,2]
[422134383,1778611833000,-150.0,0.00013039,2]
[422134386,1778611833000,-9812.7996,0.00013066,2]
[422134388,1778611833000,-150.0,0.00013113,2]
[422134385,1778611833000,-150.0,0.00013056,2]
[422134389,1778611833000,-255.0,0.0001312,2]
[422134341,1778611833000,-400.0,0.000126,4]
[422134379,1778611833000,-24848.0352296,0.00012966,2]
[422134365,1778611833000,-150.0,0.00012929,2]
[422134373,1778611833000,-500.0,0.00012965,2]
[422134364,1778611833000,-150.0,0.00012929,2]
[422134342,1778611833000,-500.0,0.00012616,2]
[422134344,1778611833000,-150.0,0.00012648,2]
[422134343,1778611833000,-223.21,0.00012644,2]
[422134347,1778611833000,-600.0,0.000127,4]
[422134346,1778611833000,-3418.89799795,0.00012699,2]
[422134360,1778611833000,-150.0,0.00012892,2]
[422134348,1778611833000,-680.926509,0.00012707,2]
[422134350,1778611833000,-150.0,0.0001273,2]
[422134349,1778611833000,-1603.169233,0.00012707,2]
[422134352,1778611833000,-150.0,0.0001275,2]
[422134353,1778611833000,-150.0,0.00012763,2]
[422134351,1778611833000,-150.0,0.00012745,2]
[422134345,1778611833000,-150.0,0.00012671,2]
[422134359,1778611833000,-500.0,0.0001289,2]
[422134366,1778611833000,-150.0,0.00012954,2]
[422134354,1778611833000,-800.0,0.000128,4]
[422134363,1778611833000,-1000.0,0.000129,4]
[422134371,1778611833000,-500.0,0.00012965,2]
[422134361,1778611833000,-288.7088498,0.00012895,2]
[422134362,1778611833000,-159.77478987,0.00012895,2]
[422134358,1778611833000,-359.38862104,0.00012874,2]
[422134357,1778611833000,-150.0,0.00012852,2]
[422134355,1778611833000,-150.0,0.00012818,2]
[422134356,1778611833000,-150.0,0.00012818,2]
[422134399,1778611834000,-500.0,0.00013193,2]
[422134402,1778611834000,-500.0,0.00013193,2]
[422134401,1778611834000,-500.0,0.00013193,2]
[422134393,1778611834000,-163.92,0.00013169,2]
[422134403,1778611834000,-500.0,0.00013193,2]
[422134398,1778611834000,-500.0,0.00013193,2]
[422134394,1778611834000,-150.0,0.00013187,2]
[422134397,1778611834000,-500.0,0.00013193,2]
[422134396,1778611834000,-500.0,0.00013193,2]
[422134395,1778611834000,-500.0,0.00013193,2]
[422134392,1778611834000,-500.0,0.00013164,2]
[422134391,1778611834000,-150.0,0.00013158,2]
[422134405,1778611834000,-500.0,0.00013193,2]
[422134400,1778611834000,-500.0,0.00013193,2]
[422134404,1778611834000,-500.0,0.00013193,2]
[422134413,1778611834000,-500.0,0.00013193,2]
[422134408,1778611834000,-500.0,0.00013193,2]
[422134406,1778611834000,-500.0,0.00013193,2]
[422134422,1778611834000,-8503.85833196,0.00013244,2]
[422134420,1778611834000,-405.8718358,0.00013244,2]
[422134421,1778611834000,-3253.1709101,0.00013244,2]
[422134416,1778611834000,-261.33032399,0.00013193,2]
[422134418,1778611834000,-405.99072547,0.00013244,2]
[422134417,1778611834000,-71499.68482619,0.00013244,2]
[422134419,1778611834000,-77861.77029364,0.00013244,2]
[422134412,1778611834000,-500.0,0.00013193,2]
[422134409,1778611834000,-500.0,0.00013193,2]
[422134411,1778611834000,-500.0,0.00013193,2]
[422134410,1778611834000,-500.0,0.00013193,2]
[422134407,1778611834000,-500.0,0.00013193,2]
[422134414,1778611834000,-500.0,0.00013193,2]
[422134415,1778611834000,-500.0,0.00013193,2]
[422134457,1778611838000,-500.0,0.00012965,2]
[422134455,1778611838000,-500.0,0.00012965,2]
[422134454,1778611838000,-500.0,0.00012965,2]
[422134456,1778611838000,-500.0,0.00012965,2]
[422134462,1778611838000,-188.97556518,0.00012965,2]
[422134459,1778611838000,-500.0,0.00012965,2]
[422134464,1778611838000,-500.0,0.00012965,2]
[422134474,1778611838000,-500.0,0.00012965,2]
[422134463,1778611838000,-500.0,0.00012965,2]
[422134458,1778611838000,-500.0,0.00012965,2]
[422134460,1778611838000,-500.0,0.00012965,2]
[422134466,1778611838000,-500.0,0.00012965,2]
[422134476,1778611838000,-500.0,0.00012965,2]
[422134447,1778611838000,-500.0,0.00012965,2]
[422134470,1778611838000,-500.0,0.00012965,2]
[422134461,1778611838000,-500.0,0.00012965,2]
[422134450,1778611838000,-500.0,0.00012965,2]
[422134443,1778611838000,-500.0,0.00012965,2]
[422134451,1778611838000,-500.0,0.00012965,2]
[422134472,1778611838000,-500.0,0.00012965,2]
[422134434,1778611838000,-250.0,0.00012569,2]
[422134436,1778611838000,-500.0,0.00012965,2]
[422134437,1778611838000,-500.0,0.00012965,2]
[422134438,1778611838000,-500.0,0.00012965,2]
[422134435,1778611838000,-500.0,0.00012965,2]
[422134441,1778611838000,-387.14561317,0.00012965,2]
[422134452,1778611838000,-500.0,0.00012965,2]
[422134439,1778611838000,-500.0,0.00012965,2]
[422134442,1778611838000,-500.0,0.00012965,2]
[422134444,1778611838000,-500.0,0.00012965,2]
[422134446,1778611838000,-275.1905511,0.00012965,2]
[422134449,1778611838000,-500.0,0.00012965,2]
[422134453,1778611838000,-274.40157096,0.00012965,2]
[422134445,1778611838000,-500.0,0.00012965,2]